bitfinex-derivatives/quotes_SOLF0:USTF0_20230701
["timestamp","ask_amount","ask_price","bid_price","bid_amount"]
[1688213933045,0.51469354,18.463,18.46,200.86950642]
[1688213933259,0.51469354,18.463,18.461,107.94]
[1688213936836,0.51469354,18.463,18.46,27.86993586]
[1688213937043,0.51469354,18.463,18.46,0.86950642]
[1688213938652,0.51469354,18.463,18.452,107.94]
[1688213938948,107.46,18.464,18.452,107.94]
[1688213939153,107.58,18.461,18.45,107.94]
[1688213939341,107.58,18.461,18.45,307.94]
[1688213939746,0.73496748,18.457,18.454,0.76736959]
[1688213942552,0.73496748,18.457,18.45,26.88420045]
[1688213942747,0.73496748,18.457,18.447,118.9]
[1688213942748,119.96,18.456,18.443,118.9]
[1688213943051,119.96,18.451,18.44,200.0]
[1688213943351,119.96,18.448,18.441,9.95606872]
[1688213943540,0.73881509,18.446,18.443,0.79880575]
[1688213944041,0.73881509,18.446,18.436,119.96]
[1688213944042,119.96,18.445,18.436,27.42885835]
[1688213944551,0.73881509,18.446,18.436,27.42885835]
[1688213945052,0.73881509,18.446,18.439,0.8187761]
[1688213945852,119.68,18.445,18.439,0.8187761]
[1688213946553,119.96,18.442,18.43,200.0]
[1688213946855,119.96,18.442,18.431,9.95878134]
[1688213947550,0.88843565,18.438,18.435,0.8875901]
[1688213947755,0.80347141,18.438,18.435,0.76350193]
[1688213948263,119.96,18.436,18.423,119.96]
[1688213948454,118.8,18.434,18.424,9.96280154]
[1688213948753,118.8,18.434,18.425,9.96280154]
[1688213948950,118.8,18.434,18.426,9.96280154]
[1688213949147,0.81111085,18.432,18.428,0.80705435]
[1688213949850,119.96,18.43,18.419,200.0]
[1688213950040,119.96,18.43,18.42,9.96283333]
[1688213950853,0.85270132,18.427,18.423,0.08233551]
[1688213954853,0.85270132,18.427,18.423,10.04516884]
[1688213955155,0.85270132,18.427,18.424,9.96283333]
[1688213955351,0.85270132,18.427,18.425,9.96283333]
[1688213955564,0.85270132,18.427,18.426,9.96283333]
[1688213956451,0.85270132,18.427,18.423,0.08233551]
[1688213959547,54.6067,18.429,18.424,119.75]
[1688213959852,54.6067,18.429,18.425,9.96283333]
[1688213960560,55.40554174,18.429,18.425,9.96283333]
[1688213962966,0.79884174,18.429,18.425,9.96283333]
[1688213963160,119.96,18.441,18.428,118.9]
[1688213963359,119.96,18.441,18.429,209.96283333]
[1688213963661,119.96,18.441,18.43,9.96283333]
[1688213964054,0.81477504,18.437,18.434,0.89415925]
[1688213966458,0.04747736,18.437,18.434,0.89415925]
[1688213966663,0.04747736,18.437,18.435,9.95898242]
[1688213967462,0.04747736,18.437,18.434,120.85415925]
[1688213970067,0.04747736,18.437,18.434,0.89415925]
[1688213973862,0.04747736,18.437,18.434,120.64415925]
[1688213975665,0.04747736,18.437,18.435,9.959459]
[1688213977067,0.04747736,18.437,18.436,119.96]
[1688213978172,0.04747736,18.437,18.436,329.91753633]
[1688213978574,57.0198,18.454,18.439,679.84]
[1688213978871,119.96,18.455,18.443,119.75]
[1688213979074,57.0198,18.454,18.443,119.75]
[1688213979576,0.77970269,18.45,18.447,0.7336922]
[1688214021497,0.77970269,18.45,18.449,107.73]
[1688214021690,0.77970269,18.45,18.449,307.73]
[1688214022600,107.58,18.463,18.449,307.73]
[1688214022901,106.96,18.466,18.455,107.43]
[1688214023590,0.74879583,18.462,18.459,0.80935659]
[1688214034103,107.41,18.461,18.459,0.80935659]
[1688214034305,107.41,18.461,18.45,161.8424]
[1688214034604,163.1717,18.461,18.45,161.8424]
[1688214035203,0.74360047,18.457,18.454,0.86488875]
[1688214035804,107.44,18.456,18.444,107.43]
[1688214035995,107.44,18.456,18.444,135.17320021]
[1688214036199,107.44,18.456,18.444,107.43]
[1688214036701,0.82754634,18.452,18.448,0.76906594]
[1688214045413,108.23754634,18.452,18.448,0.76906594]
[1688214045619,108.23754634,18.452,18.44,162.0446]
[1688214045823,107.41,18.452,18.441,37.07760309]
[1688214046018,107.41,18.452,18.44,162.0446]
[1688214046214,107.41,18.452,18.441,9.95627279]
[1688214046721,0.75223587,18.448,18.445,0.88188211]
[1688214051318,106.96,18.454,18.445,0.88188211]
[1688214052324,0.79319787,18.451,18.445,0.88188211]
[1688214058731,57.0539,18.455,18.447,107.02]
[1688214059427,107.44,18.461,18.45,107.43]
[1688214059628,58.406,18.463,18.453,107.73]
[1688214059832,0.75953225,18.46,18.456,0.796419]
[1688214061327,107.44,18.467,18.456,107.816419]
[1688214061535,107.44,18.467,18.456,107.02]
[1688214061928,107.44,18.467,18.45,431.27]
[1688214061929,107.41,18.469,18.458,107.73]
[1688214062435,0.88018647,18.465,18.462,0.81405491]
[1688214065334,0.74184118,18.465,18.464,107.46]
[1688214079450,0.74184118,18.465,18.464,134.37778307]
[1688214083655,0.74184118,18.465,18.464,565.29778307]
[1688214084758,108.0,18.48,18.468,200.0]
[1688214084954,57.4723,18.479,18.471,107.02]
[1688214085856,0.89254621,18.477,18.473,0.78567225]
[1688214087054,107.73,18.476,18.473,0.78567225]
[1688214091956,0.89254621,18.477,18.473,0.78567225]
[1688214103167,0.89254621,18.477,18.473,107.80567225]
[1688214104478,0.89254621,18.477,18.473,0.78567225]
[1688214107970,108.47254621,18.477,18.473,0.78567225]
[1688214111873,0.89254621,18.477,18.473,0.78567225]
[1688214117183,107.73,18.476,18.473,0.78567225]
[1688214120090,107.73,18.476,18.464,107.02]
[1688214120991,0.80343808,18.472,18.468,0.80033176]
[1688214121293,0.80343808,18.472,18.468,108.53033176]
[1688214123894,0.80343808,18.472,18.468,0.80033176]
[1688214132803,0.80343808,18.472,18.471,107.02]
[1688214133800,56.9066,18.482,18.472,430.92]
[1688214134003,107.44,18.487,18.472,430.92]
[1688214134905,0.86259509,18.481,18.479,107.73]
[1688214135109,0.82425682,18.482,18.479,107.73]
[1688214135311,0.74871898,18.482,18.479,107.73]
[1688214135909,0.74871898,18.482,18.479,0.82188865]
[1688214138107,0.74871898,18.482,18.471,27.25122037]
[1688214138308,107.58,18.478,18.471,27.25122037]
[1688214138503,107.58,18.478,18.467,107.73]
[1688214138910,430.92,18.48,18.459,121.62682226]
[1688214139113,107.44,18.47,18.46,9.9449398]
[1688214139500,107.26,18.467,18.456,135.07433523]
[1688214139704,107.26,18.467,18.456,107.46]
[1688214140214,0.74933509,18.463,18.46,0.84975433]
[1688214149916,108.18933509,18.463,18.452,107.46]
[1688214150114,108.18933509,18.463,18.453,9.94808968]
[1688214150115,107.44,18.463,18.453,9.94808968]
[1688214150912,0.77327192,18.46,18.456,0.88203568]
[1688214155623,107.73327192,18.46,18.449,255.87218102]
[1688214155921,107.73327192,18.46,18.45,9.94825753]
[1688214156121,107.73327192,18.46,18.45,131.7065212]
[1688214156323,107.73327192,18.46,18.451,9.94825753]
[1688214156622,107.73327192,18.46,18.454,0.72902064]
[1688214156818,107.41,18.455,18.444,107.73]
[1688214157024,107.41,18.455,18.445,9.95029]
[1688214157918,0.8867969,18.452,18.445,9.95029]
[1688214162625,108.4667969,18.452,18.445,9.95029]
[1688214162826,108.4667969,18.452,18.446,9.95029]
[1688214163024,108.4667969,18.452,18.447,9.95029]
[1688214163227,108.4667969,18.452,18.442,121.8715085]
[1688214163425,108.4667969,18.452,18.443,9.95129955]
[1688214164423,108.4667969,18.452,18.444,9.95129955]
[1688214164721,108.4667969,18.452,18.445,9.95129955]
[1688214164927,108.4667969,18.452,18.446,9.95129955]
[1688214165131,108.4667969,18.452,18.447,9.95129955]
[1688214165431,108.4667969,18.452,18.441,107.73]
[1688214165629,108.4667969,18.452,18.442,9.95148658]
[1688214170042,107.58,18.449,18.442,9.95148658]
[1688214170340,106.96,18.446,18.433,108.11]
[1688214170543,0.86504798,18.441,18.434,9.95761659]
[1688214178341,0.86504798,18.441,18.436,107.02]
[1688214178539,0.86504798,18.441,18.437,9.95761659]
[1688214185550,0.86504798,18.441,18.439,107.73]
[1688214185755,56.0153,18.448,18.439,107.73]
[1688214186358,107.44,18.45,18.439,107.73]
[1688214186740,0.87624362,18.446,18.443,0.82081912]
[1688214187342,58.6599,18.456,18.443,0.82081912]
[1688214187343,106.96,18.455,18.444,107.02]
[1688214188450,0.7496617,18.451,18.448,0.80182912]
[1688214190452,106.96,18.46,18.449,107.56]
[1688214191464,0.78597573,18.456,18.453,0.89070812]
[1688214191755,0.78597573,18.456,18.453,0.77322036]
[1688214192945,0.78597573,18.456,18.446,107.46]
[1688214194155,0.78597573,18.456,18.449,0.77027318]
[1688214195254,107.58,18.454,18.449,0.77027318]
[1688214199151,200.0,18.453,18.439,27.14425289]
[1688214199349,106.96,18.446,18.434,162.5932]
[1688214199554,106.96,18.446,18.435,9.95615378]
[1688214200260,0.77812045,18.442,18.439,0.7919344]
[1688214214285,0.77812045,18.442,18.432,107.46]
[1688214214483,0.77812045,18.442,18.433,9.95800193]
[1688214215384,0.77812045,18.442,18.436,0.1581703]
[1688214220585,55.6452,18.449,18.439,107.43]
[1688214221485,0.77517315,18.446,18.442,0.86223065]
[1688214221988,107.26,18.458,18.445,107.73]
[1688214222987,0.77509483,18.453,18.45,0.83768337]
[1688214223586,107.44,18.461,18.45,0.83768337]
[1688214223785,107.44,18.461,18.449,107.02]
[1688214224785,0.82856438,18.457,18.453,0.78907127]
[1688214231895,107.58,18.456,18.453,0.78907127]
[1688214237894,0.82856438,18.457,18.453,0.78907127]
[1688214244499,0.82856438,18.457,18.456,107.73]
[1688214247703,0.82856438,18.457,18.453,27.23302645]
[1688214247704,0.82856438,18.457,18.453,0.78907127]
[1688214272031,107.58,18.456,18.453,0.78907127]
[1688214276635,107.58,18.456,18.445,107.02]
[1688214276830,200.0,18.453,18.441,108.01]
[1688214277031,107.41,18.45,18.438,107.43]
[1688214277630,0.75435331,18.446,18.442,0.76345434]
[1688214279430,0.75435331,18.446,18.444,107.46]
[1688214291847,0.75435331,18.446,18.442,134.79858851]
[1688214292051,0.75435331,18.446,18.443,9.95335837]
[1688214292250,0.75435331,18.446,18.443,132.18279035]
[1688214292451,0.75435331,18.446,18.443,122.22943198]
[1688214293046,0.75435331,18.446,18.442,134.79858851]
[1688214293251,0.75435331,18.446,18.443,9.95334847]
[1688214293949,0.75435331,18.446,18.443,132.18278045]
[1688214294252,0.75435331,18.446,18.443,122.22943198]
[1688214294455,0.75435331,18.446,18.442,134.79858851]
[1688214294647,0.75435331,18.446,18.443,9.95332543]
[1688214295254,0.75435331,18.446,18.443,132.18275741]
[1688214295555,0.75435331,18.446,18.443,122.22943198]
[1688214295756,0.75435331,18.446,18.442,134.79858851]
[1688214295952,0.75435331,18.446,18.444,96.89]
[1688214301859,0.75435331,18.446,18.443,96.27]
[1688214305357,0.75435331,18.446,18.442,27.33858851]
[1688214307663,96.0,18.443,18.438,27.51900328]
[1688214307960,96.0,18.443,18.436,96.27]
[1688214308150,96.0,18.443,18.437,9.95654138]
[1688214308764,0.76080122,18.442,18.438,0.87579195]
[1688214310454,0.76080122,18.442,18.438,97.76579195]
[1688214311862,0.76080122,18.442,18.438,0.87579195]
[1688214315964,0.76080122,18.442,18.438,28.54996091]
[1688214316161,96.0,18.439,18.431,96.89]
[1688214316363,96.0,18.437,18.431,96.89]
[1688214316664,96.0,18.436,18.43,96.27]
[1688214317266,0.75065683,18.435,18.43,96.27]
[1688214318864,96.0,18.433,18.427,96.89]
[1688214319371,96.97,18.431,18.424,83.27389321]
[1688214319668,96.0,18.426,18.407,200.0]
[1688214319871,96.0,18.426,18.419,96.27]
[1688214320068,0.78087098,18.424,18.419,96.27]
[1688214320266,0.78087098,18.424,18.421,0.06044923]
[1688214329375,0.78087098,18.424,18.416,26.73728763]
[1688214329580,0.78087098,18.424,18.417,9.96832077]
[1688214329773,0.78087098,18.424,18.414,163.815]
[1688214330073,0.78087098,18.424,18.415,9.96921777]
[1688214331080,200.0,18.422,18.415,9.96921777]
[1688214331283,308.03,18.422,18.41,106.97]
[1688214331584,0.84115097,18.418,18.41,106.97]
[1688214331990,0.84115097,18.418,18.409,107.79]
[1688214332287,0.77070163,18.415,18.406,108.02]
[1688214332479,0.86720342,18.412,18.407,9.97368928]
[1688214332789,108.03,18.411,18.399,166.0817]
[1688214332979,0.82780114,18.407,18.4,9.97695902]
[1688214333375,107.2,18.403,18.398,55.24499571]
[1688214333582,0.80124311,18.402,18.398,55.24499571]
[1688214341089,162.9878,18.411,18.399,116.96729039]
[1688214341297,162.9878,18.411,18.399,106.99]
[1688214341594,162.9878,18.411,18.4,9.97777954]
[1688214342092,0.77448021,18.407,18.404,0.76133848]
[1688214344492,108.03,18.416,18.404,107.75133848]
[1688214344690,108.03,18.419,18.408,107.54]
[1688214345487,0.81907032,18.415,18.412,0.74405203]
[1688214345687,0.76190245,18.415,18.412,0.74405203]
[1688214346694,108.03,18.422,18.412,0.74405203]
[1688214347693,0.75993121,18.419,18.412,0.74405203]
[1688214349390,0.75993121,18.419,18.414,108.02]
[1688214350498,0.75993121,18.419,18.412,108.28405203]
[1688214350790,0.75993121,18.419,18.412,0.74405203]
[1688214351889,0.75993121,18.419,18.413,117.76]
[1688214361100,0.75993121,18.419,18.415,118.65]
[1688214362399,59.7559,18.426,18.415,118.65]
[1688214363398,0.8707569,18.422,18.419,0.85421913]
[1688214367106,0.8707569,18.422,18.41,26.78273917]
[1688214367107,119.2507569,18.422,18.41,26.78273917]
[1688214367301,118.38,18.422,18.411,9.9718527]
[1688214367697,118.38,18.422,18.41,9.9718527]
[1688214367906,118.38,18.422,18.411,9.9718527]
[1688214368106,0.88385816,18.418,18.415,0.77255294]
[1688214373603,118.89,18.425,18.415,0.77255294]
[1688214374603,0.74009728,18.422,18.416,118.65]
[1688214374908,0.74009728,18.422,18.417,0.74354916]
[1688214376811,59.7559,18.426,18.419,118.23]
[1688214377811,0.85588763,18.424,18.419,118.23]
[1688214378111,0.85588763,18.424,18.42,0.80339132]
[1688214382306,58.9399,18.43,18.42,0.80339132]
[1688214383222,0.70459576,18.427,18.42,0.80339132]
[1688214389218,118.89,18.437,18.424,118.89]
[1688214390417,118.89,18.437,18.429,0.83362222]
[1688214401523,118.89,18.434,18.429,0.83362222]
[1688214401822,118.89,18.434,18.43,0.88936252]
[1688214402027,118.89,18.434,18.43,0.75479314]
[1688214406829,118.89,18.437,18.43,0.75479314]
[1688214408235,54.5959,18.441,18.43,118.98479314]
[1688214415835,162.4859,18.441,18.43,108.23479314]
[1688214418235,107.89,18.438,18.43,0.75479314]
[1688214424143,486.0159,18.441,18.43,0.75479314]
[1688214424330,107.27,18.435,18.43,0.75479314]
[1688214427139,107.27,18.435,18.424,107.5]
[1688214427344,486.0159,18.441,18.422,106.84]
[1688214427345,107.89,18.433,18.422,106.84]
[1688214428139,0.73435278,18.429,18.426,0.81175191]
[1688214447464,107.89,18.428,18.417,107.48]
[1688214448362,0.79731844,18.424,18.421,0.80042633]
[1688214451571,0.79731844,18.424,18.414,107.89]
[1688214452757,0.79731844,18.424,18.417,0.83377758]
[1688214455366,0.79731844,18.424,18.408,123.13160123]
[1688214455367,107.89,18.418,18.408,123.13160123]
[1688214455559,107.89,18.418,18.406,106.84]
[1688214456468,0.81382204,18.414,18.41,0.7531241]
[1688214472782,0.81382204,18.414,18.41,108.2331241]
[1688214477387,0.81382204,18.414,18.41,0.7531241]
[1688214485781,0.81382204,18.414,18.412,97.29]
[1688214491996,0.81382204,18.414,18.413,97.29]
[1688214493492,97.29,18.422,18.413,96.95]
[1688214493697,97.29,18.422,18.416,96.95]
[1688214494393,97.29,18.425,18.419,97.29]
[1688214494601,0.75180834,18.421,18.419,97.29]
[1688214510806,0.75180834,18.421,18.418,96.95]
[1688214522809,96.38,18.431,18.42,97.29]
[1688214523009,96.38,18.433,18.427,97.29]
[1688214523813,0.8346589,18.432,18.428,0.8542319]
[1688214525118,59.3789,18.436,18.43,96.95]
[1688214526213,0.76737346,18.435,18.43,96.95]
[1688214527421,97.29,18.44,18.434,97.29]
[1688214528321,97.29,18.44,18.435,0.75344552]
[1688214531416,96.38,18.445,18.439,96.95]
[1688214531717,96.38,18.445,18.44,0.77248406]
[1688214542228,54.8976,18.45,18.44,0.77248406]
[1688214542426,97.29,18.449,18.443,96.95]
[1688214542736,96.38,18.452,18.446,97.29]
[1688214542924,55.0269,18.451,18.446,97.29]
[1688214544129,296.38,18.452,18.446,97.29]
[1688214551238,11.0,18.447,18.446,97.29]
[1688214551540,11.0,18.447,18.444,0.86091817]
[1688214552824,96.38,18.446,18.444,0.86091817]
[1688214553532,97.29,18.445,18.438,97.29]
[1688214554430,0.75536247,18.443,18.44,0.80383663]
[1688214557647,22.0,18.441,18.44,0.80383663]
[1688214558033,33.0,18.441,18.44,0.80383663]
[1688214568147,33.0,18.441,18.44,97.75383663]
[1688214571838,33.0,18.441,18.44,0.80383663]
[1688214598973,33.0,18.441,18.44,98.09383663]
[1688214606891,0.75536247,18.443,18.44,98.09383663]
[1688214607182,0.75536247,18.443,18.442,97.29]
[1688214609185,96.38,18.456,18.442,97.29]
[1688214609381,96.38,18.456,18.45,97.29]
[1688214610279,96.38,18.456,18.441,57.6129]
[1688214610280,97.42452423,18.455,18.451,0.8930637]
[1688214610588,0.13452423,18.455,18.451,98.1389566]
[1688214616481,96.51452423,18.455,18.451,0.8489566]
[1688214616687,296.38,18.452,18.44,27.35021974]
[1688214616883,96.38,18.446,18.44,124.30021974]
[1688214617085,96.38,18.446,18.44,96.95]
[1688214617285,97.29,18.443,18.437,96.95]
[1688214617486,96.38,18.441,18.434,97.29]
[1688214617686,0.752365,18.439,18.434,97.29]
[1688214617880,0.752365,18.439,18.436,0.86122723]
[1688214620191,97.29,18.437,18.429,97.29]
[1688214620389,96.38,18.436,18.429,124.16968224]
[1688214620782,96.38,18.436,18.429,26.87968224]
[1688214620987,107.68,18.438,18.429,26.87968224]
[1688214621188,0.8397486,18.434,18.431,0.79062716]
[1688214640005,107.1,18.433,18.425,27.73550581]
[1688214640213,0.8397486,18.434,18.425,27.73550581]
[1688214640420,0.8397486,18.434,18.424,107.79]
[1688214640913,0.8397486,18.434,18.427,0.84969848]
[1688214647723,108.7497486,18.434,18.427,0.84969848]
[1688214648717,54.9099,18.433,18.427,0.84969848]
[1688214650115,107.1,18.431,18.421,27.50198128]
[1688214650316,431.64,18.442,18.417,106.86]
[1688214650317,107.91,18.428,18.417,106.86]
[1688214651218,0.84801252,18.424,18.421,0.81841719]
[1688214655019,107.68,18.423,18.412,107.91]
[1688214655319,107.68,18.423,18.413,9.9712858]
[1688214656222,0.88240882,18.42,18.416,0.8842787]
[1688214658723,108.79240882,18.42,18.409,107.91]
[1688214658924,107.91,18.417,18.406,26.91032773]
[1688214659219,107.91,18.417,18.407,9.97364502]
[1688214659421,54.268,18.422,18.403,27.47667496]
[1688214659422,107.91,18.414,18.408,9.97364502]
[1688214659631,0.83256363,18.413,18.409,0.23762468]
[1688214659831,55.10056363,18.413,18.409,0.23762468]
[1688214663125,55.10056363,18.413,18.405,9.9744432]
[1688214663325,0.83256363,18.413,18.405,9.9744432]
[1688214664130,0.83256363,18.413,18.402,26.51683042]
[1688214664131,307.93256363,18.413,18.402,26.51683042]
[1688214664528,307.93256363,18.413,18.401,107.41]
[1688214664828,0.85642794,18.409,18.402,9.97551624]
[1688214666224,107.95642794,18.409,18.399,54.6209]
[1688214666424,107.95642794,18.409,18.4,9.97701579]
[1688214666625,107.95642794,18.409,18.395,107.91]
[1688214666626,107.91,18.406,18.395,107.91]
[1688214666827,0.76990002,18.402,18.396,9.97786945]
[1688214670734,0.76990002,18.402,18.397,9.97786945]
[1688214670935,0.76990002,18.402,18.398,9.97786945]
[1688214671127,0.76990002,18.402,18.399,9.97786945]
[1688214671329,0.76990002,18.402,18.392,106.86]
[1688214671527,0.76990002,18.402,18.393,9.97802848]
[1688214672035,108.44990002,18.402,18.393,9.97802848]
[1688214675250,0.76990002,18.402,18.393,117.76802848]
[1688214675549,0.76990002,18.402,18.394,9.97802848]
[1688214677645,107.91,18.401,18.394,9.97802848]
[1688214677846,107.91,18.401,18.395,9.97802848]
[1688214678048,107.91,18.401,18.396,9.97802848]
[1688214678248,107.91,18.401,18.397,9.97802848]
[1688214678446,108.675052,18.401,18.398,9.97802848]
[1688214678745,108.675052,18.401,18.39,107.19]
[1688214678946,108.675052,18.401,18.391,9.97779805]
[1688214684348,0.765052,18.401,18.392,107.79]
[1688214684548,0.765052,18.401,18.393,9.97779805]
[1688214700956,0.765052,18.401,18.394,9.97779805]
[1688214701159,0.765052,18.401,18.391,164.2421]
[1688214701160,0.765052,18.401,18.395,9.97779805]
[1688214701458,0.765052,18.401,18.396,9.97779805]
[1688214701659,0.765052,18.401,18.397,9.97779805]
[1688214701853,0.765052,18.401,18.391,164.2421]
[1688214702057,0.765052,18.401,18.392,9.97831083]
[1688214705965,0.765052,18.401,18.393,97.32]
[1688214705966,97.49,18.4,18.393,97.32]
[1688214706165,97.49,18.4,18.394,9.97831083]
[1688214707367,0.765052,18.401,18.39,26.7736125]
[1688214707368,97.49,18.395,18.39,26.7736125]
[1688214707565,0.83495657,18.394,18.389,97.49]
[1688214708571,97.49,18.401,18.393,97.49]
[1688214709568,0.77247756,18.399,18.395,0.78479256]
[1688214710169,0.77247756,18.399,18.397,97.32]
[1688214710371,97.49,18.404,18.397,97.32]
[1688214710565,97.49,18.407,18.4,97.49]
[1688214711274,97.49,18.407,18.402,0.7671491]
[1688214711571,97.49,18.412,18.405,97.32]
[1688214711963,97.49,18.413,18.407,97.49]
[1688214712463,97.49,18.411,18.408,0.82672002]
[1688214712668,97.49,18.411,18.408,0.7684774]
[1688214712669,98.35851234,18.411,18.408,0.7684774]
[1688214715369,97.49,18.409,18.398,124.0738295]
[1688214715573,200.0,18.414,18.398,124.0738295]
[1688214715574,97.49,18.404,18.398,124.0738295]
[1688214715766,97.49,18.404,18.398,97.32]
[1688214715965,107.5,18.407,18.395,108.27]
[1688214716272,0.78542255,18.403,18.399,0.77069159]
[1688214720476,0.78542255,18.403,18.399,109.04069159]
[1688214721976,108.83,18.411,18.399,108.27]
[1688214723068,0.88823917,18.407,18.403,0.80526633]
[1688214723471,107.33,18.417,18.405,108.27]
[1688214723674,96.62502176,18.416,18.405,108.27]
[1688214724471,0.76274423,18.412,18.409,0.76536195]
[1688214731171,107.5,18.411,18.409,0.76536195]
[1688214731377,96.64739155,18.41,18.399,190.95668866]
[1688214732381,0.83475763,18.406,18.403,0.88987156]
[1688214743686,108.27,18.417,18.405,108.27]
[1688214743890,96.62465356,18.416,18.405,108.27]
[1688214744481,96.62465356,18.416,18.408,108.27]
[1688214744682,0.88231755,18.414,18.41,0.85131353]
[1688214744883,96.62465356,18.413,18.41,0.85131353]
[1688214752485,96.62465356,18.413,18.401,27.41640921]
[1688214752486,107.33,18.411,18.401,27.41640921]
[1688214752879,107.33,18.411,18.399,108.12]
[1688214753082,107.33,18.411,18.4,9.97806471]
[1688214753390,0.84170828,18.407,18.404,0.74245019]
[1688214756090,107.33,18.413,18.404,0.74245019]
[1688214757284,0.80390284,18.41,18.404,0.74245019]
[1688214762096,0.80390284,18.41,18.404,108.86245019]
[1688214770603,0.80390284,18.41,18.404,0.74245019]
[1688214780910,0.80390284,18.41,18.405,96.53]
[1688214783312,59.5631,18.418,18.404,0.74245019]
[1688214783513,96.63,18.42,18.414,96.53]
[1688214783707,97.37,18.423,18.417,96.53]
[1688214784018,96.58755207,18.422,18.417,96.53]
[1688214784429,0.74317262,18.421,18.418,0.87220863]
[1688214785313,97.37317262,18.421,18.418,0.87220863]
[1688214785708,96.5810717,18.42,18.418,0.87220863]
[1688214786518,0.74317262,18.421,18.418,0.87220863]
[1688214795327,0.74317262,18.421,18.408,200.0]
[1688214795328,108.81317262,18.421,18.41,108.07]
[1688214795530,108.07,18.421,18.41,108.07]
[1688214796128,0.8179321,18.417,18.414,0.81442951]
[1688214801538,0.8179321,18.417,18.407,134.33359672]
[1688214801838,0.8179321,18.417,18.407,107.18]
[1688214802537,0.8179321,18.417,18.41,0.8891418]
[1688214805534,96.60972529,18.416,18.41,0.8891418]
[1688214815142,107.61,18.414,18.41,0.8891418]
[1688214815344,96.60972529,18.413,18.41,0.8891418]
[1688214815546,107.61,18.414,18.41,0.8891418]
[1688214816749,0.8179321,18.417,18.41,0.8891418]
[1688214817043,96.62031016,18.416,18.41,0.8891418]
[1688214827942,203.98031016,18.416,18.41,0.8891418]
[1688214828140,96.62031016,18.415,18.41,0.8891418]
[1688214840766,108.07,18.413,18.402,134.29164625]
[1688214840963,96.62031016,18.412,18.402,134.29164625]
[1688214841158,96.62031016,18.412,18.402,107.2]
[1688214841858,0.8591839,18.409,18.405,0.87675739]
[1688214845365,96.65536429,18.408,18.399,108.07]
[1688214846464,96.65536429,18.408,18.402,0.71732945]
[1688214847666,108.07,18.407,18.402,0.71732945]
[1688214848270,108.07,18.407,18.395,108.75]
[1688214848568,107.61,18.404,18.393,161.2001]
[1688214849469,0.86456736,18.4,18.393,161.2001]
[1688214849868,0.86456736,18.4,18.393,188.8007083]
[1688214850966,0.86456736,18.4,18.395,97.48]
[1688214861872,0.86456736,18.4,18.397,96.61]
[1688214868175,0.86456736,18.4,18.395,96.61]
[1688214871978,98.34456736,18.4,18.394,96.61]
[1688214872278,0.80489558,18.399,18.394,96.61]
[1688214881986,0.80489558,18.399,18.396,96.61]
[1688214888501,0.80489558,18.399,18.394,96.61]
[1688214888698,0.814037,18.398,18.394,96.61]
[1688214891904,0.814037,18.398,18.393,97.48]
[1688214893407,96.76,18.397,18.39,96.61]
[1688214893601,0.73442314,18.395,18.39,96.61]
[1688214894408,0.7534898,18.389,18.37,24.97259315]
[1688214894706,96.76,18.391,18.383,96.61]
[1688214894906,96.74824624,18.39,18.383,96.61]
[1688214895109,97.6218883,18.389,18.383,96.61]
[1688214895313,96.76,18.387,18.38,96.61]
[1688214895604,0.81711994,18.385,18.38,96.61]
[1688214896911,0.81711994,18.385,18.383,96.61]
[1688214897100,97.48,18.39,18.383,96.61]
[1688214897101,0.87849824,18.386,18.383,96.61]
[1688214899114,0.87849824,18.386,18.38,96.61]
[1688214899411,0.73481307,18.385,18.38,96.61]
[1688214909020,0.73481307,18.385,18.383,96.61]
[1688214911820,0.73481307,18.385,18.382,96.61]
[1688214912021,0.74671626,18.385,18.382,96.61]